fUSD/lending_fUSD_20251217
["ID","MTS","AMOUNT","RATE_DAILY","PERIOD"]
[398906624,1765984281245,-2069.94833988,0.00022,7]
[398906625,1765984281275,-350.359926,0.00021918,2]
[398906626,1765984281284,-1418.9699376,0.00022,7]
[398906627,1765984281323,-13439.99705314,0.00022,7]
[398906628,1765984281337,-2222.65175904,0.00022,7]
[398906629,1765984281351,-19505.80331783,0.00022,7]
[398906630,1765984281361,-2000.0,0.00022,2]
[398906631,1765984281370,-481.46730423,0.00022,7]
[398906632,1765984281379,-587.61067375,0.00022,2]
[398906633,1765984281389,-587.61067375,0.00022,2]
[398906634,1765984281398,-487.72879277,0.00022,2]
[398906635,1765984281410,-1247.04815576,0.00022,2]
[398906636,1765984281420,-3520.636504,0.0002201,2]
[398906637,1765984281429,-514.46111751,0.00022044,2]
[398906638,1765984281439,-2982.38653223,0.0002206,2]
[398906639,1765984281457,-517.61346777,0.0002206,2]
[398906640,1765984281467,-500.0,0.00022069,2]
[398906641,1765984281477,-492.25859422,0.000221,2]
[398906642,1765984281486,-239.19291187,0.0002211,2]
[398906643,1765984281496,-450.0,0.00022116,2]
[398906644,1765984281507,-1600.0,0.00022119,2]
[398906645,1765984281517,-796.19226871,0.00022145,2]
[398906646,1765984281526,-500.0,0.00022191,21]
[398906647,1765984281536,-1137.63478024,0.00022192,2]
[398906648,1765984281545,-1000.0,0.00022192,2]
[398906649,1765984281554,-500.0,0.00022206,2]
[398906650,1765984281565,-171.74,0.00022221,2]
[398906651,1765984281574,-553.34,0.00022221,2]
[398906652,1765984281584,-152.0,0.00022271,14]
[398906653,1765984281593,-1200.0,0.00022274,7]
[398906654,1765984281603,-800.0,0.00022274,7]
[398906655,1765984281613,-452.70420799,0.00022343,2]
[398906656,1765984281622,-151.12198165,0.00022434,2]
[398906657,1765984281631,-2094.87368375,0.00022456,2]
[398906658,1765984281640,-239.64,0.00022458,2]
[398906659,1765984281650,-500.0,0.00022465,22]
[398906660,1765984281659,-1000.0,0.00022466,2]
[398906661,1765984281669,-35340.70237784,0.000225,2]
[398906662,1765984281679,-250.0,0.000225,2]
[398906663,1765984281688,-250.0,0.000225,2]
[398906664,1765984281697,-250.0,0.000225,2]
[398906665,1765984281707,-1600.0,0.00022548,7]
[398906666,1765984281718,-152.0,0.00022603,15]
[398906667,1765984281727,-661.4793613,0.00022608,2]
[398906668,1765984281737,-550.0,0.00022664,2]
[398906669,1765984281746,-825.65138265,0.00022693,2]
[398906670,1765984281756,-481.46730423,0.000227,7]
[398906671,1765984281770,-520.79546493,0.0002271,2]
[398906672,1765984281780,-588.45268964,0.00022739,23]
[398906673,1765984281791,-1000.0,0.0002274,2]
[398906674,1765984281801,-1000.0,0.0002274,2]
[398906675,1765984281811,-1306.0,0.00022776,2]
[398906676,1765984281820,-2427.0,0.00022776,2]
[398906677,1765984281830,-4799.0,0.00022776,2]
[398906678,1765984281839,-563.0,0.00022776,2]
[398906679,1765984281850,-3878.65494624,0.00022776,2]
[398906682,1765984699655,500.0,0.00015499,3]
[398906683,1765984699889,500.0,0.00015499,4]
[398906684,1765984911336,167.60658536,0.00014304,7]
[398906702,1765985432504,-252.0,0.00012438,2]
[398906703,1765985432514,-197.65042618,0.00012438,2]
[398906704,1765985432523,-250.0,0.00012438,2]
[398906706,1765985432534,-168.26,0.00012438,2]
[398906707,1765985432543,-1098.0,0.00013362,2]
[398906709,1765985432553,-941.43751446,0.00013582,2]
[398906711,1765985432563,-250.0,0.00013682,2]
[398906713,1765985432572,-250.0,0.00013682,2]
[398906715,1765985432582,-612.31,0.00013699,2]
[398906716,1765985432592,-300.0,0.00013988,2]
[398906717,1765985432602,-1200.0,0.00013989,2]
[398906718,1765985432611,-1200.0,0.00013989,2]
[398906719,1765985432621,-300.0,0.00013989,2]
[398906720,1765985432631,-5342.98275519,0.0001399,2]
[398906721,1765985432641,-200.0,0.00014003,2]
[398906722,1765985432651,-1098.0,0.00014065,2]
[398906723,1765985432661,-941.43751445,0.0001444,2]
[398906724,1765985432671,-489.61,0.00014467,2]
[398906725,1765985432682,-646.0,0.00014693,2]
[398906726,1765985432693,-1203.0,0.00014723,2]
[398906727,1765985432705,-1363.0,0.00014762,2]
[398906728,1765985432715,-470.07927239,0.00014762,2]
[398906729,1765985432725,-166.66,0.0001477,2]
[398906730,1765985432734,-474.0,0.00014792,2]
[398906731,1765985432744,-1098.0,0.00014806,2]
[398906732,1765985432754,-166.66,0.00014929,2]
[398906733,1765985432764,-150.0,0.00014999,2]
[398906734,1765985432773,-150.0,0.00015,2]
[398906735,1765985432784,-4120.27966053,0.00015,2]
[398906736,1765985432794,-7129.86305583,0.00015,2]
[398906737,1765985432804,-762.37409762,0.00015,2]
[398906738,1765985432818,-81.3234506,0.00015,2]
[398906739,1765985432827,-166.66,0.00015081,2]
[398906740,1765985432837,-500.0,0.00015198,2]
[398906741,1765985432847,-321.55798011,0.00015199,2]
[398906742,1765985432856,-375.84211404,0.000152,2]
[398906743,1765985432879,-9908.79084138,0.000152,2]
[398906744,1765985432890,-263.46582946,0.000152,2]
[398906745,1765985432901,-1978.68061684,0.000152,2]
[398906746,1765985432912,-320.27745216,0.00015288,2]
[398906747,1765985432922,-500.0,0.00015291,2]
[398906748,1765985432932,-500.0,0.00015291,2]
[398906750,1765985432942,-500.0,0.00015291,2]
[398906752,1765985432953,-500.0,0.00015291,2]
[398906754,1765985432963,-219.98563934,0.00015291,2]
[398906763,1765985433041,-1243.67,0.00015288,2]
[398906765,1765985433052,-209.10131663,0.00015291,2]
[398906767,1765985433063,-151.0,0.00015291,2]
[398906769,1765985433073,-151.0,0.00015291,2]
[398906771,1765985433083,-11.0924757,0.00015291,2]
[398906773,1765985433096,-139.9075243,0.00015291,2]
[398906775,1765985433107,-151.0,0.00015291,2]
[398906777,1765985433117,-151.0,0.00015291,2]
[398906778,1765985433127,-104.7095911,0.00015291,2]
[398906781,1765985433142,-46.2904089,0.00015291,2]
[398906783,1765985433154,-151.0,0.00015291,2]
[398906784,1765985433164,-151.0,0.00015291,2]
[398906785,1765985433174,-214.76652521,0.00015291,2]
[398906786,1765985433186,-200.0,0.00015291,2]
[398906787,1765985433195,-500.0,0.00015291,2]
[398906788,1765985433208,-194.21929349,0.00015291,2]
[398906789,1765985433220,-151.0,0.00015291,2]
[398906790,1765985433230,-151.0,0.00015291,2]
[398906791,1765985433241,-151.0,0.00015291,2]
[398906792,1765985433251,-151.0,0.00015291,2]
[398906793,1765985433261,-151.0,0.00015291,2]
[398906794,1765985433271,-151.0,0.00015291,2]
[398906795,1765985433282,-151.0,0.00015291,2]
[398906796,1765985433291,-151.0,0.00015291,2]
[398906797,1765985433301,-200.0,0.00015291,2]
[398906798,1765985433312,-151.0,0.00015291,2]
[398906799,1765985433322,-151.0,0.00015291,2]
[398906800,1765985433334,-151.0,0.00015291,2]
[398906801,1765985433345,-151.0,0.00015291,2]
[398906802,1765985433355,-941.43751445,0.00015297,2]
[398906803,1765985433366,-2461.71592396,0.00015298,2]
[398906804,1765985433380,-27597.1808678,0.00015298,2]
[398906805,1765985433397,-40101.76925564,0.00015298,2]
[398906806,1765985438410,-1243.67,0.00015288,2]
[398906807,1765985438420,-1243.67,0.00015288,2]
[398906808,1765985438430,-1243.67,0.00015288,2]
[398906809,1765985438441,-1243.67,0.00015288,2]
[398906811,1765985438453,-207.47315101,0.00015297,2]
[398906812,1765985438463,-500.0,0.00015297,2]
[398906813,1765985438474,-230.0305203,0.00015297,2]
[398906814,1765985438483,-500.0,0.00015297,2]
[398906815,1765985438493,-500.0,0.00015297,2]
[398906816,1765985438503,-500.0,0.00015297,2]
[398906817,1765985438512,-500.0,0.00015297,2]
[398906818,1765985438522,-264.1886854,0.00015297,2]
[398906819,1765985438531,-500.0,0.00015297,2]
[398906820,1765985438541,-500.0,0.00015297,2]
[398906821,1765985438551,-510.6293492,0.00015297,2]
[398906822,1765985438560,-2740.28268361,0.00015298,2]
[398906823,1765985438572,-9300.54679052,0.00015298,2]
[398906824,1765985438587,-1315.68623605,0.00015298,2]
[398906825,1765985438599,-650.0,0.00015298,2]
[398906826,1765985438610,-122173.27998228,0.00015298,2]
[398906827,1765985438622,-360.129,0.00015298,2]
[398906828,1765985438633,-3027.18735771,0.00015298,2]
[398906829,1765985438643,-423.96133734,0.00015298,2]
[398906830,1765985438684,-11992.73905007,0.00015298,2]
[398906831,1765985438695,-1174.0667096,0.00015298,2]
[398906832,1765985438708,-489.23389195,0.00015298,2]
[398906833,1765985438719,-16989.26968353,0.00015298,2]
[398906834,1765985438730,-4038.49465,0.00015298,2]
[398906835,1765985438741,-387.4725984,0.00015298,2]
[398906839,1765985440462,-1659.9274711,0.00015298,2]
[398906841,1765985440473,-451.8568,0.00015298,2]
[398906846,1765985440574,-512665.19971044,0.00015298,2]
[398906847,1765985440584,-2109.459,0.000153,2]
[398906848,1765985440593,-5791.82238777,0.000153,2]
[398906849,1765985440602,-420.0,0.00015325,2]
[398906850,1765985440612,-1200.0,0.00015326,2]
[398906851,1765985440621,-420.0,0.00015326,2]
[398906852,1765985440630,-1680.0,0.00015388,2]
[398906853,1765985440639,-12526.77940165,0.00015389,2]
[398906854,1765985440650,-166.66,0.00015392,2]
[398906855,1765985440659,-500.0,0.00015397,2]
[398906856,1765985440668,-500.0,0.00015397,2]
[398906857,1765985440677,-500.0,0.00015397,2]
[398906858,1765985440687,-500.0,0.00015397,2]
[398906859,1765985440696,-500.0,0.00015397,2]
[398906860,1765985440706,-500.0,0.00015397,2]
[398906861,1765985440715,-500.0,0.00015397,2]
[398906862,1765985440724,-500.0,0.00015397,2]
[398906863,1765985440733,-500.0,0.00015397,2]
[398906864,1765985440743,-500.0,0.00015397,2]
[398906865,1765985440752,-208.55442295,0.00015397,2]
[398906866,1765985440761,-500.0,0.00015397,2]
[398906867,1765985440770,-514.77254056,0.00015397,2]
[398906868,1765985440779,-503.9543882,0.00015397,2]
[398906869,1765985440788,-500.0,0.00015397,2]
[398906870,1765985440797,-500.0,0.00015397,2]
[398906871,1765985440806,-500.0,0.00015397,2]
[398906872,1765985440815,-500.0,0.00015397,2]
[398906873,1765985440824,-768.75,0.00015397,2]
[398906874,1765985440833,-500.0,0.00015397,2]
[398906875,1765985440843,-500.0,0.00015397,2]
[398906876,1765985440853,-500.0,0.00015397,2]
[398906877,1765985440861,-500.0,0.00015397,2]
[398906878,1765985440871,-170.39,0.00015397,2]
[398906879,1765985440880,-384.6550183,0.00015397,2]
[398906880,1765985440889,-12113.573,0.000154,2]
[398906881,1765985440898,-505.62829288,0.000154,2]
[398906883,1765985440908,-166.66,0.00015422,2]
[398906885,1765985440916,-321.55798006,0.00015443,2]
[398906887,1765985440925,-500.0,0.00015499,2]
[398906889,1765985440935,-500.0,0.00015499,2]
[398906891,1765985440943,-500.0,0.00015499,2]
[398906893,1765985440954,-617.59279202,0.00015499,2]
[398906895,1765985440963,-500.0,0.00015499,2]
[398906897,1765985440972,-500.0,0.00015499,2]
[398906899,1765985440982,-500.0,0.00015499,2]
[398906901,1765985440991,-500.0,0.00015499,2]
[398906902,1765985441000,-500.0,0.00015499,2]
[398906903,1765985441009,-500.0,0.00015499,2]
[398906904,1765985441019,-500.0,0.00015499,2]
[398906905,1765985441032,-250.23576519,0.00015499,2]
[398906906,1765985441048,-500.0,0.00015499,2]
[398906907,1765985441069,-500.0,0.00015499,2]
[398906908,1765985441090,-500.0,0.00015499,2]
[398906909,1765985441112,-500.0,0.00015499,2]
[398906910,1765985441134,-500.0,0.00015499,2]
[398906911,1765985441158,-500.0,0.00015499,2]
[398906913,1765985441178,-161.16627567,0.00015499,2]
[398906915,1765985441200,-200.32,0.000155,2]
[398906917,1765985441228,-1600.0,0.00015548,2]
[398906919,1765985441250,-999.0,0.00015548,3]
[398906920,1765985441272,-3222.97,0.00015548,2]
[398906921,1765985441296,-3240.0,0.00015548,2]
[398906922,1765985441317,-150.0,0.00015548,2]
[398906923,1765985441339,-40605.53,0.00015548,2]
[398906924,1765985441361,-12526.77940165,0.00015578,2]
[398906925,1765985441372,-1098.0,0.00015585,2]
[398906926,1765985441383,-320.27745214,0.00015652,2]
[398906928,1765985441392,-768.75,0.00015671,2]
[398906930,1765985441401,-321.55798006,0.00015688,2]
[398906931,1765985441411,-166.66,0.00015703,2]
[398906932,1765985441419,-200.0,0.00015839,2]
[398906933,1765985441429,-721.0,0.0001589,2]
[398906934,1765985441438,-721.0,0.0001589,2]
[398906935,1765985441448,-721.0,0.0001589,2]
[398906936,1765985441460,-166.66,0.00015915,2]
[398906937,1765985441469,-321.55798006,0.00015932,2]
[398906938,1765985441479,-768.75,0.00015945,2]
[398906939,1765985441488,-153.53644351,0.0001599,2]
[398906940,1765985441497,-150.0,0.00016,2]
[398906941,1765985441506,-11112.25512909,0.00016,2]
[398906942,1765985441515,-198102.8195015,0.00016,2]
[398906943,1765985441524,-150167.14023371,0.00016,4]
[398906944,1765985441533,-415.16425882,0.00016,2]
[398906945,1765985441542,-166.66,0.00016014,2]
[398906946,1765985441551,-320.27745214,0.00016016,2]
[398906947,1765985441560,-9999.99,0.00016116,2]
[398906948,1765985441570,-9999.99,0.00016116,2]
[398906949,1765985441579,-8226.43,0.00016116,2]
[398906950,1765985441588,-150.99,0.00016116,2]
[398906951,1765985441597,-3482.39,0.00016116,2]
[398906952,1765985441606,-20000.02,0.00016116,2]
[398906953,1765985441616,-3804.02,0.00016116,2]
[398906954,1765985441625,-150.99,0.00016116,2]
[398906955,1765985441634,-761.64,0.00016116,2]
[398906956,1765985441643,-3977.38,0.00016116,2]
[398906957,1765985441653,-9999.99,0.00016116,2]
[398906958,1765985441662,-255.0,0.00016124,2]
[398906959,1765985441671,-160.29,0.00016169,2]
[398906960,1765985441680,-321.55798006,0.00016176,2]
[398906961,1765985441689,-5000.00683536,0.000162,5]
[398906962,1765985441698,-768.75,0.00016219,2]
[398906963,1765985441708,-166.66,0.00016325,2]
[398906964,1765985441718,-1098.0,0.00016364,2]
[398906965,1765985441728,-500.0,0.00016383,2]
[398906966,1765985441737,-500.0,0.00016383,2]
[398906967,1765985441745,-500.0,0.00016383,2]
[398906968,1765985441755,-500.0,0.00016383,5]
[398906969,1765985441764,-166.66,0.00016408,2]
[398906970,1765985441774,-321.55798006,0.0001642,2]
[398906971,1765985441783,-250.0,0.00016435,2]
[398906972,1765985441792,-500.0,0.00016438,2]
[398906973,1765985441802,-500.0,0.00016438,2]
[398906974,1765985441811,-500.0,0.00016438,2]
[398906975,1765985441820,-500.0,0.00016438,2]
[398906976,1765985441829,-500.0,0.00016438,2]
[398906977,1765985441839,-500.0,0.00016438,2]
[398906978,1765985441848,-445.63256349,0.00016438,2]
[398906979,1765985441857,-500.0,0.00016438,2]
[398906980,1765985441866,-768.75,0.00016493,2]
[398906981,1765985441875,-321.55798006,0.00016665,2]
[398906982,1765985441884,-1118.92825236,0.00016668,2]
[398906983,1765985441893,-768.76662645,0.00016767,2]
[398906984,1765985441903,-300.0,0.00016789,2]
[398906985,1765985441911,-587.0,0.00016791,2]
[398906986,1765985441920,-461.19905582,0.00016899,2]
[398906987,1765985441930,-1500.0,0.000169,2]
[398906988,1765985441939,-1600.98,0.000169,2]
[398906989,1765985441948,-4189.7473675,0.000169,2]
[398906990,1765985441958,-2855.15191448,0.000169,2]
[398906991,1765985441967,-784.8449496,0.000169,2]
[398906992,1765985441976,-183.59203345,0.000169,2]
[398906993,1765985441985,-166.66,0.00016901,2]
[398906994,1765985441995,-321.55798006,0.00016909,2]
[398906995,1765985442004,-500.0,0.00016921,2]
[398906996,1765985442013,-500.0,0.00016921,2]
[398906997,1765985442022,-2351.0,0.00016927,2]
[398906998,1765985442031,-500.0,0.00016938,2]
[398906999,1765985442041,-1000.0,0.00016965,2]
[398907000,1765985442050,-603.98998006,0.00016965,2]
[398907001,1765985442059,-1000.0,0.00016965,2]
[398907002,1765985442068,-279.34044728,0.00016965,2]
[398907003,1765985442077,-533.88981491,0.00016965,2]
[398907004,1765985442086,-300.0,0.00016965,2]
[398907005,1765985442096,-500.0,0.00016973,2]
[398907006,1765985442105,-500.0,0.00016973,2]
[398907007,1765985442114,-500.0,0.00016973,2]
[398907008,1765985442123,-500.0,0.00016973,2]
[398907009,1765985442132,-500.0,0.00016986,2]
[398907010,1765985442143,-500.0,0.00016986,2]
[398907011,1765985442155,-232190.01,0.00016986,2]
[398907012,1765985442164,-1000.0,0.00017,2]
[398907013,1765985442173,-1000.0,0.00017,2]
[398907014,1765985442183,-250.0,0.00017,2]
[398907015,1765985442192,-6345256.93531939,0.00017,2]
[398907016,1765985442201,-48521.39773124,0.00017,2]
[398907019,1765985443512,-305.57387787,0.00017,2]
[398907020,1765985443524,-1169.5132345,0.00017,2]
[398907021,1765985443535,-10078.087185,0.00017,2]
[398907022,1765985443546,-1291.91694381,0.00017,2]
[398907023,1765985443557,-578.57186378,0.00017,2]
[398907024,1765985443568,-21188.12627986,0.00017,2]
[398907025,1765985443579,-2412.0000024,0.00017,2]
[398907026,1765985443590,-4287.77,0.00017,2]
[398907027,1765985443602,-36501.583421,0.00017,2]
[398907028,1765985443738,-254.94538776,0.00015297,2]
[398907029,1765985443750,-238.52959533,0.00015297,2]
[398907030,1765985443759,-256.66451165,0.00015297,2]
[398907031,1765985443769,-384.80589302,0.00015297,2]
[398907032,1765985443780,-115.19410698,0.00015297,2]
[398907033,1765985443789,-1173.760732,0.00017,2]
[398907034,1765985443801,-903699.99999909,0.00017,2]
[398907035,1765985443812,-3411.37260033,0.00017,2]
[398907037,1765985443823,-3681.900821,0.00017,2]
[398907043,1765985443869,-93867.01356386,0.00017,2]
[398907046,1765985443880,-333.31603524,0.00017,2]
[398907048,1765985443891,-1715.1,0.00017,2]
[398907050,1765985443902,-457.10686771,0.00017,2]
[398907052,1765985443912,-351.90276764,0.00017,2]
[398907054,1765985443923,-648.93851997,0.00017,2]
[398907057,1765985443935,-466.7936093,0.00017,2]
[398907061,1765985443961,-601.30221088,0.00017,2]
[398907088,1765985446507,-580.43097571,0.00015297,2]
[398907090,1765985446517,-500.0,0.00015297,2]
[398907092,1765985446527,-500.0,0.00015297,2]
[398907094,1765985446536,-500.0,0.00015297,2]
[398907096,1765985446546,-500.0,0.00015297,2]
[398907098,1765985446555,-500.0,0.00015297,2]
[398907100,1765985446564,-500.0,0.00015297,2]
[398907102,1765985446574,-500.0,0.00015297,2]
[398907104,1765985446584,-319.89906026,0.00015297,2]
[398907106,1765985446596,-180.10093974,0.00015297,2]
[398907108,1765985446605,-121.81351026,0.00015297,2]
[398907110,1765985446617,-378.18648974,0.00015297,2]
[398907112,1765985446626,-500.0,0.00015297,2]
[398907114,1765985446635,-500.0,0.00015297,2]
[398907116,1765985446644,-500.0,0.00015297,2]
[398907118,1765985446654,-500.0,0.00015297,2]
[398907120,1765985446663,-500.0,0.00015297,2]
[398907122,1765985446672,-500.0,0.00015297,2]
[398907124,1765985446682,-215.37555504,0.00015297,2]
[398907127,1765985446694,-284.62444496,0.00015297,2]
[398907129,1765985446703,-500.0,0.00015297,2]
[398907131,1765985446714,-500.0,0.00015297,2]
[398907133,1765985446723,-500.0,0.00015297,2]
[398907135,1765985446732,-500.0,0.00015297,2]
[398907137,1765985446742,-500.0,0.00015297,2]
[398907139,1765985446752,-500.0,0.00015297,2]
[398907141,1765985446761,-500.0,0.00015297,2]
[398907143,1765985446771,-500.0,0.00015297,2]
[398907146,1765985446785,-500.0,0.00015297,2]
[398907148,1765985446795,-500.0,0.00015297,2]
[398907149,1765985446805,-500.0,0.00015297,2]
[398907152,1765985446814,-500.0,0.00015297,2]
[398907154,1765985446823,-500.0,0.00015297,2]
[398907155,1765985446833,-500.0,0.00015297,2]
[398907158,1765985446843,-500.0,0.00015297,2]
[398907160,1765985446852,-500.0,0.00015297,2]
[398907162,1765985446861,-500.0,0.00015297,2]
[398907164,1765985446870,-500.0,0.00015297,2]
[398907165,1765985446880,-500.0,0.00015297,2]
[398907166,1765985446889,-500.0,0.00015297,2]
[398907168,1765985446899,-500.0,0.00015297,2]
[398907170,1765985446911,-500.0,0.00015297,2]
[398907172,1765985446920,-500.0,0.00015297,2]
[398907174,1765985446929,-500.0,0.00015297,2]
[398907176,1765985446939,-500.0,0.00015297,2]
[398907178,1765985446947,-500.0,0.00015297,2]
[398907180,1765985446957,-415.04907658,0.00015297,2]
[398907182,1765985446967,-500.0,0.00015297,2]
[398907184,1765985446976,-500.0,0.00015297,2]
[398907187,1765985446985,-1180.0,0.00015746,2]
[398907190,1765985446995,-12526.77940165,0.00015767,2]
[398907193,1765985447005,-313.44101953,0.000159,2]
[398907196,1765985447016,-24297.01551469,0.00017,2]
[398907199,1765985447031,-11046.44933814,0.00017,2]
[398907202,1765985447043,-379.12000001,0.00017,2]
[398907206,1765985447055,-1533.49318993,0.00017,2]
[398907209,1765985447065,-155099.4651302,0.00017,2]
[398907213,1765985447076,-2678.09204341,0.00017,2]
[398907217,1765985447091,-281.178,0.00017,2]
[398907220,1765985447102,-474.4368,0.00017,2]
[398907222,1765985447113,-109142.84125138,0.00017,2]
[398907224,1765985447124,-794.30477733,0.00017,2]
[398907228,1765985447154,-934.40077117,0.00017,2]
[398907354,1765985719983,-2937.69237437,0.00015294,2]
[398907355,1765985720010,-300.0,0.00015294,2]
[398907356,1765985720037,-1200.0,0.00015294,2]
[398907357,1765985720063,-300.0,0.00015294,2]
[398907358,1765985720089,-1200.0,0.00015295,2]
[398907359,1765985720115,-300.0,0.00015295,2]
[398907360,1765985720140,-300.0,0.00015295,2]
[398907361,1765985720165,-300.0,0.00015295,2]
[398907362,1765985720195,-500.0,0.00015296,2]
[398907363,1765985720224,-500.0,0.00015296,2]
[398907364,1765985720257,-500.0,0.00015296,2]
[398907365,1765985720288,-500.0,0.00015296,2]
[398907366,1765985720318,-292.35441689,0.00015296,2]
[398907367,1765985720346,-500.0,0.00015296,2]
[398907368,1765985720374,-500.0,0.00015296,2]
[398907369,1765985720402,-500.0,0.00015296,2]
[398907370,1765985720431,-500.0,0.00015296,2]
[398907371,1765985720460,-500.0,0.00015296,2]
[398907372,1765985720488,-500.0,0.00015296,2]
[398907373,1765985720516,-500.0,0.00015296,2]
[398907374,1765985720543,-500.0,0.00015296,2]
[398907375,1765985720571,-500.0,0.00015296,2]
[398907376,1765985720598,-500.0,0.00015296,2]
[398907377,1765985720625,-500.0,0.00015296,2]
[398907378,1765985720654,-500.0,0.00015296,2]
[398907379,1765985720682,-500.0,0.00015296,2]
[398907380,1765985720709,-500.0,0.00015296,2]
[398907381,1765985720736,-500.0,0.00015296,2]
[398907382,1765985720764,-500.0,0.00015296,2]
[398907383,1765985720792,-500.0,0.00015296,2]
[398907384,1765985720818,-167.84770547,0.00015296,2]
[398907385,1765985720847,-500.0,0.00015296,2]
[398907386,1765985720874,-500.0,0.00015296,2]
[398907387,1765985720901,-449.15049076,0.00015296,2]
[398907388,1765985720933,-70827.95501251,0.00015297,2]
[398907432,1765986262457,4938.0,0.000155,5]
[398907445,1765986631737,-150.0,0.0001457,2]
[398907446,1765986631747,-253.42530796,0.00014701,2]
[398907447,1765986631757,-300.0,0.00014701,2]
[398907448,1765986631767,-300.0,0.00014832,2]
[398907449,1765986631777,-300.0,0.0001499,2]
[398907450,1765986631786,-200.0,0.00015093,2]
[398907451,1765986631796,-300.0,0.00015094,2]
[398907452,1765986631805,-3910.14328913,0.000151,2]
[398907453,1765986631817,-896.45,0.000151,2]
[398907454,1765986631829,-617.377,0.000151,2]
[398907455,1765986631841,-2092.09735186,0.000151,2]
[398907456,1765986631851,-162.94637883,0.000151,2]
[398907457,1765986631861,-416.68185942,0.000151,2]
[398907458,1765986631871,-300.0,0.00015116,2]
[398907459,1765986631881,-300.0,0.00015116,2]
[398907460,1765986631895,-300.0,0.00015116,2]
[398907461,1765986631913,-460.65318266,0.00015187,2]
[398907462,1765986631927,-368.45681734,0.00015187,2]
[398907463,1765986631937,-77.15322207,0.00015187,2]
[398907475,1765986632159,-751.95677793,0.00015187,2]
[398907477,1765986632168,-829.11,0.00015187,2]
[398907479,1765986632178,-829.11,0.00015187,2]
[398907481,1765986632187,-829.11,0.00015187,2]
[398907482,1765986632196,-1200.0,0.00015193,2]
[398907484,1765986632206,-2114.51322207,0.00015194,2]
[398907487,1765986632217,-2580.95044276,0.00015194,2]
[398907489,1765986632227,-300.0,0.00015195,2]
[398907491,1765986632236,-14.16727174,0.00015196,2]
[398907501,1765986632732,-285.83272826,0.00015196,2]
[398907502,1765986632750,-1200.0,0.00015196,2]
[398907503,1765986632760,-160.13872608,0.00015196,2]
[398907504,1765986632770,-25312.00530218,0.00015197,2]
[398907505,1765986632781,-157527.22243785,0.00015197,2]
[398907511,1765986638718,-14.88526126,0.000151,2]
[398907512,1765986638731,-1907.28828516,0.000151,2]
[398907513,1765986638751,-5946.93957584,0.000151,2]
[398907514,1765986638761,-387.69864719,0.00015196,2]
[398907515,1765986638771,-500.0,0.00015196,2]
[398907516,1765986638781,-500.0,0.00015196,2]
[398907517,1765986638790,-500.0,0.00015196,2]
[398907518,1765986638800,-500.0,0.00015196,2]
[398907519,1765986638809,-500.0,0.00015196,2]
[398907520,1765986638819,-500.0,0.00015196,2]
[398907521,1765986638829,-500.0,0.00015196,2]
[398907523,1765986638839,-500.0,0.00015196,2]
[398907524,1765986638849,-500.0,0.00015196,2]
[398907525,1765986638859,-500.0,0.00015196,2]
[398907526,1765986638869,-500.0,0.00015196,2]
[398907527,1765986638880,-300.0,0.00015196,2]
[398907528,1765986638896,-500.0,0.00015196,2]
[398907529,1765986638906,-577160.77225997,0.00015197,2]
[398907530,1765986638916,-150.48027205,0.000152,2]